{"text_format":"2","workbook":"xlsx","n_sheets":12,"sheets":["Total","meuble","Cuve","Tuyauterie","Osmolateur","Décante","Electricité","Eclairages","electroAqua","Osmoseur","substrat + PVs","Sels+eau"],"not_rendered":{"charts":0,"images":0,"macros":0,"external_links":0,"defined_names":0,"comments":0,"pivot_tables":0},"unopened":[],"bounds":{"document_bytes":16777216,"sheet_cells":100000,"run_cost":"one","rows_first":2000,"rows_last":500,"rows_between":2000,"halvings":0,"cell_chars":16384,"cell_head_chars":4096},"cells_cut":0,"cells_raw":0,"read":"whole","date_system":"1900"}

{"sheet":"Total","index":0,"n_rows":17,"n_cols":11,"rows_kept":17,"cut":false,"hidden":false,"merged":[]}
["Nom","Total",{"$nulls":4},"Dimention","Meuble","Cuve","Reserve","Decante"]
["Meuble",{"$f":"meuble!E25","v":442.99},{"$nulls":4},"L",1600,1600]
["Cuve",{"$f":"Cuve!E25","v":600},{"$nulls":4},"l",600,600]
["Tuyauterie",{"$f":"Tuyauterie!E25","v":113.56},{"$nulls":4},"H",1000,600]
["Osmolateur",{"$f":"Osmolateur!E25","v":12.64}]
["Décante",{"$f":"Décante!E25","v":156.01}]
["Electricité",{"$f":"Electricité!E7","v":83.36}]
["Eclairages",{"$f":"Eclairages!E16","v":65.94}]
["ElectroAqua",{"$f":"electroAqua!E25","v":799}]
["Osmoseur",{"$f":"Osmoseur!E7","v":120.54}]
["Substrat + Pvs",{"$f":"'substrat + PVs'!E5","v":309.88}]
["sels+eau",{"$f":"'Sels+eau'!E3","v":24.9}]
[]
[]
[null,null,"Prix redsea",2724]
["Total",{"$f":"SUM(B2:B15)","v":2728.82},"diff redsea",{"$f":"SUM(B2:B6)","v":1325.2}]
[null,null,null,{"$f":"D15-D16","v":1398.8}]

{"sheet":"meuble","index":1,"n_rows":25,"n_cols":8,"rows_kept":25,"cut":false,"hidden":false,"merged":[]}
["Matériels","Ref","PU","Nombre","total","Remarques","Site","Date D'achat"]
["Peinture",null,24.99,1,{"$f":"D2*C2","v":24.99}]
["Contreplaqué marine",null,1250,0,{"$f":"D3*C3","v":0},null,"https://www.laboutiquedubois.com/panneau-contreplaque-marine-1037.html"]
["Contreplaqué",null,418,1,{"$f":"D4*C4","v":418}]
{"$rows_empty":20}
[null,null,null,"Total",{"$f":"SUM(E2:E24)","v":442.99}]

{"sheet":"Cuve","index":2,"n_rows":25,"n_cols":8,"rows_kept":25,"cut":false,"hidden":false,"merged":[]}
["Matériels","Ref","PU","Nombre","total","Remarques","Site","Date D'achat"]
[null,null,600,1,{"$f":"C2*D2","v":600},null,null,"Fait"]
[{"$nulls":7},"Fait"]
[{"$nulls":7},"Fait"]
[{"$nulls":7},"Fait"]
[{"$nulls":7},"Fait"]
[]
[]
[]
[{"$nulls":7},"Fait"]
[{"$nulls":7},"Fait"]
[{"$nulls":7},"Fait"]
[{"$nulls":7},"Fait"]
[{"$nulls":7},"Fait"]
[{"$nulls":7},"Fait"]
[{"$nulls":7},"Fait"]
[{"$nulls":7},"Fait"]
[{"$nulls":7},"Fait"]
[{"$nulls":7},"Fait"]
[]
[]
[]
[]
[]
[null,null,null,"total",{"$f":"SUM(E2:E24)","v":600}]

{"sheet":"Tuyauterie","index":3,"n_rows":25,"n_cols":8,"rows_kept":25,"cut":false,"hidden":false,"merged":[]}
["Matériels","Ref","PU","Nombre","total","Remarques","Site","Date D'achat"]
["Joint uniseal® 32mm",null,3.5,2,{"$f":"D2*C2","v":7},null,"Neo3plus","Fait"]
["Coude 90 32mm",null,1.9,2,{"$f":"D3*C3","v":3.8},null,"aquastore","Fait"]
["Vanne 32mm",null,12.9,2,{"$f":"D4*C4","v":25.8},null,"aquastore","Fait"]
["Tube 32mm",null,3.9,2,{"$f":"D5*C5","v":7.8},null,"aquastore","Fait"]
["Embout cannelé 32mm",null,2.9,4,{"$f":"D6*C6","v":11.6},null,"aquastore","Fait"]
["Tuyau souple 32mm",null,2.45,5,{"$f":"D7*C7","v":12.25},null,"garda-aquatic","Fait"]
["T 32mm",null,1.9,2,{"$f":"D8*C8","v":3.8},null,"aquastore","Fait"]
["Bouchon 32mm",null,1.9,4,{"$f":"D9*C9","v":7.6},null,"aquastore","Fait"]
["Joint uniseal® 20mm",null,2.75,1,{"$f":"D10*C10","v":2.75},null,"Neo3plus","Fait"]
["Tuyau souple 20mm",null,1.4,3,{"$f":"D11*C11","v":4.2},null,"garda-aquatic","Fait"]
["tube 20mm",null,2.9,1,{"$f":"D12*C12","v":2.9},null,"aquastore","Fait"]
["Embout cannelé 20mm",null,1.9,1,{"$f":"D13*C13","v":1.9},null,"aquastore","Fait"]
["Coude 90 20mm",null,1.7,1,{"$f":"D14*C14","v":1.7},null,"aquastore","Fait"]
["Colle PVC",null,7.9,1,{"$f":"D15*C15","v":7.9},"Colle N-30 pour PVC - 250ml","aquastore","Fait"]
["Sac perlon",null,1.33,2,{"$f":"D16*C16","v":2.66},null,"Fabriqué","Fait"]
["Peigne",null,9.9,1,{"$f":"D17*C17","v":9.9},null,"aquastore","Fait"]
{"$rows_empty":7}
[null,null,null,"Total",{"$f":"SUM(E2:E24)","v":113.56}]

{"sheet":"Osmolateur","index":4,"n_rows":25,"n_cols":8,"rows_kept":25,"cut":false,"hidden":false,"merged":[]}
["Matériels","Ref","PU","Nombre","total","Remarques","Site","Date D'achat"]
["Pompe Osmlolateur","Mini Micro Submersible Pompe À Eau",5.44,1,{"$f":"D2*C2","v":5.44},null,"Aliexpress","Fait"]
["Capteur niveau eau",null,{"$f":"7.2/5","v":1.44},5,{"$f":"D3*C3","v":7.2},null,"Aliexpress","Fait"]
{"$rows_empty":21}
[null,null,null,"Total",{"$f":"SUM(E2:E24)","v":12.64}]

{"sheet":"Décante","index":5,"n_rows":25,"n_cols":8,"rows_kept":25,"cut":false,"hidden":false,"merged":[]}
["Matériels","Ref","PU","Nombre","total","Remarques","Site","Date D'achat"]
["Ecumeurs","Curve A5",122,1,{"$f":"D2*C2","v":122},"Mini 2X voulume du fabricant","Aliexpress","Fait"]
["pompes remontés",null,16.01,1,{"$f":"D3*C3","v":16.01},"3 et 4 X volumes du bac par heure\nSoit 11L/min","Aliexpress"]
[]
[]
[]
["Décante","fond tech","verre normal bord brut",7.37,1,{"$f":"D7*E7","v":7.37}]
[null,"AV/AR tech","verre normal bord brut",7.9,2,{"$f":"D8*E8","v":15.8}]
[null,"cotés tech","verre normal bord brut",3.77,2,{"$f":"D9*E9","v":7.54}]
[null,"Lame","verre normal bord brut",1.88,4,{"$f":"D10*E10","v":7.52}]
[null,"Colle",null,9.99,2,{"$f":"D11*E11","v":19.98}]
[null,"pistolet ",null,7.5,1,{"$f":"D12*E12","v":7.5}]
[null,"foret 45mm",null,2.5,1,{"$f":"D13*E13","v":2.5}]
[null,"Peinture",null,8,1,{"$f":"D14*E14","v":8}]
[null,"Mousse",null,5.99,3,{"$f":"D15*E15","v":17.97}]
[null,"Bac reserve eau",null,3.9,1,{"$f":"D16*E16","v":3.9}]
{"$rows_empty":8}
[{"$nulls":4},{"$f":"SUM(E2:E24)","v":156.01}]

{"sheet":"Electricité","index":6,"n_rows":7,"n_cols":8,"rows_kept":7,"cut":false,"hidden":false,"merged":[]}
["Matériels","Ref","PU","Nombre","total","Remarques","Site","Date D'achat"]
["Rail DIN",581538,4.99,4,{"$f":"D2*C2","v":19.96},"nombre de module \n15 prise + 2 dijoncteur\n+ emplacement Ordinateur","Magasin de bricolage","Fait"]
["disjoncteur",948469,6.95,2,{"$f":"D3*C3","v":13.9},null,"Magasin de bricolage","Fait"]
["Prise electrique",1159821,4.95,10,{"$f":"D4*C4","v":49.5},null,"Magasin de bricolage","Fait"]
[]
[]
[null,null,null,"Total",{"$f":"SUM(E2:E6)","v":83.36}]

{"sheet":"Eclairages","index":7,"n_rows":16,"n_cols":9,"rows_kept":16,"cut":false,"hidden":false,"merged":[]}
["Matériels","Ref","PU","Nombre","total","Remarques","Site","Date D'achat"]
["Leds",null,0.2,17,{"$f":"D2*C2","v":3.4},null,"Aliexpress","Fait","(manque led vert)"]
["Leds UV",null,{"$f":"4.4/10","v":0.44},4,{"$f":"D3*C3","v":1.76},null,"Aliexpress","Fait"]
["Regle aluminium",null,15,1,{"$f":"D4*C4","v":15},null,"Magasin de bricolage","Fait"]
["Alimentation 12V",null,0,1,{"$f":"D5*C5","v":0},null,"Recupération","Fait"]
["Carte Commande",null,4.99,1,{"$f":"D6*C6","v":4.99},null,"SeedStudio","Fait"]
["Circuit par led",null,4.99,1,{"$f":"D7*C7","v":4.99},null,"SeedStudio","Fait"]
["Pieds",null,null,2,{"$f":"D8*C8","v":0},null,null,"Fait"]
["Ventilateur",null,0,6,{"$f":"D9*C9","v":0},null,"Recupération","Fait"]
["Lentille",null,1.79,20,{"$f":"D10*C10","v":35.8},null,"Aliexpress","Fait"]
["Vis M2",null,null,80,{"$f":"D11*C11","v":0},null,"Aliexpress","Fait"]
["Vis M3",null,null,80,{"$f":"D12*C12","v":0},null,"Aliexpress","Fait"]
["Vis ventilateur ??",null,null,null,{"$f":"D13*C13","v":0},null,"Aliexpress","Fait"]
["Vis montage ??",null,null,null,{"$f":"D14*C14","v":0},null,"Aliexpress","Fait"]
["Resistance",null,0.12,17,{"$f":"D15*C15","v":2.04},null,"Aliexpress","Fait"]
[null,null,null,"Total",{"$f":"SUM(E2:E10)","v":65.94}]

{"sheet":"electroAqua","index":8,"n_rows":25,"n_cols":8,"rows_kept":25,"cut":false,"hidden":false,"merged":[]}
["Matériels","Ref","PU","Nombre","total","Remarques","Site","Date D'achat"]
["Pompe de brassage",null,300,1,{"$f":"D2*C2","v":300},"40X le volume => 7200 L"]
["Chauffage",null,40,1,{"$f":"D3*C3","v":40}]
["Ecumeur",null,350,1,{"$f":"D4*C4","v":350}]
["Pompe de remonté",null,109,1,{"$f":"D5*C5","v":109}]
{"$rows_empty":19}
[null,null,null,"Total",{"$f":"SUM(E2:E24)","v":799}]

{"sheet":"Osmoseur","index":9,"n_rows":7,"n_cols":8,"rows_kept":7,"cut":false,"hidden":false,"merged":[]}
["Matériels","Ref","PU","Nombre","total","Remarques","Site","Date D'achat"]
["Osmoseur",null,39.9,1,{"$f":"D2*C2","v":39.9},null,"aquastore","Fait"]
["Pompe ",null,65.99,1,57.53,null,"Manomano","Fait"]
["TDS metre",null,2.01,1,{"$f":"D4*C4","v":2.01},null,"Aliexpress","Fait"]
["Robiné double",null,21.1,1,{"$f":"D5*C5","v":21.1},null,"Magasin de bricolage","Fait"]
["Sortie pompe",null,12.46,1,{"$f":"D6*C6","v":12.46},null,"aquastore","Fait"]
[null,null,null,"Total",{"$f":"SUM(E2:E5)","v":120.54}]

{"sheet":"substrat + PVs","index":10,"n_rows":5,"n_cols":8,"rows_kept":5,"cut":false,"hidden":false,"merged":[]}
[50,"Ref","PU","Nombre","total","Remarques","Site","Date D'achat"]
["Sable","AQUA MEDIC Bali Sand 0,5-1,2mm - 10 kg",29.99,2,{"$f":"D2*C2","v":59.98},"15Kg","Aquastore","Fait"]
["PV",null,15.9,7,{"$f":"D3*C3","v":111.3},"7kg","Marinehome","Fait"]
["Reefrock",null,9.9,14,{"$f":"D4*C4","v":138.6},"14kg","Marinehome","Fait"]
[null,null,null,"Total",{"$f":"SUM(E2:E4)","v":309.88}]

{"sheet":"Sels+eau","index":11,"n_rows":3,"n_cols":8,"rows_kept":3,"cut":false,"hidden":false,"merged":[]}
["Matériels","Ref","PU","Nombre","total","Remarques","Site","Date D'achat"]
[null,null,{"$f":"20.75*1.2","v":24.9},1,{"$f":"D2*C2","v":24.9},"35g/L => 1025 200L=> 7Kg","Marine home","Septembre"]
[null,null,null,"Total",{"$f":"SUM(E2:E2)","v":24.9}]